bitfinex-derivatives/quotes_ETHF0:USTF0_20250816
["timestamp","ask_amount","ask_price","bid_price","bid_amount"]
[1755330143719,1.50981853,4452.2,4452.1,0.26687476]
[1755330143919,1.50981853,4452.2,4452.1,0.10107476]
[1755330153625,0.87721853,4452.2,4452.1,0.10107476]
[1755330153831,0.29151853,4452.2,4452.1,1.55677476]
[1755330154028,0.46061853,4452.2,4452.1,1.55677476]
[1755330154231,1.50981853,4452.2,4452.1,1.55677476]
[1755330154532,1.50981853,4452.2,4452.1,1.31567476]
[1755330154730,1.50981853,4452.2,4452.1,1.55677476]
[1755330155131,1.50981853,4452.2,4452.1,1.31567476]
[1755330160334,0.29151853,4452.2,4452.1,1.31567476]
[1755330160540,0.29151853,4452.2,4452.1,1.55677476]
[1755330160743,0.03671853,4452.2,4452.1,1.55677476]
[1755330162340,0.46061853,4452.2,4452.1,1.55677476]
[1755330162935,1.50981853,4452.2,4452.1,1.55677476]
[1755330163141,1.50981853,4452.2,4452.1,1.31567476]
[1755330163741,1.50981853,4452.2,4452.1,0.34837476]
[1755330163943,1.50981853,4452.2,4452.1,0.52397476]
[1755330164142,1.50981853,4452.2,4452.1,0.10107476]
[1755330164640,1.50981853,4452.2,4452.1,0.46907476]
[1755330164840,1.50981853,4452.2,4452.1,1.31567476]
[1755330165243,1.50981853,4452.2,4452.1,0.51417476]
[1755330165542,1.50981853,4452.2,4452.1,0.34837476]
[1755330166037,1.4731,4452.2,4452.1,0.34837476]
[1755330166239,1.54058789,4452.2,4452.1,0.94767476]
[1755330166445,1.54058789,4452.2,4452.1,1.55677476]
[1755330166647,1.6617809,4452.2,4452.1,1.55677476]
[1755330166843,1.54058789,4452.2,4452.1,1.55677476]
[1755330167146,1.14848789,4452.2,4452.1,1.55677476]
[1755330167340,1.50151661,4452.2,4452.1,1.55677476]
[1755330167534,1.89361661,4452.2,4452.1,1.55677476]
[1755330168044,1.89361661,4452.2,4452.1,1.31567476]
[1755330168946,3.34418224,4452.2,4452.1,1.31567476]
[1755330169940,3.34418224,4452.2,4452.1,0.10107476]
[1755330172248,0.5673,4451.4,4451.3,3.818]
[1755330172447,1.81072872,4451.4,4451.3,4.4212]
[1755330173138,1.87821661,4451.4,4451.3,4.4212]
[1755330175151,1.64643603,4451.4,4451.3,4.4212]
[1755330175449,1.2474666,4451.4,4451.3,4.6723]
[1755330175649,0.06748789,4451.4,4451.3,4.6723]
[1755330176346,0.48878789,4451.4,4451.3,4.6723]
[1755330176551,0.06748789,4451.4,4451.3,4.6723]
[1755330178247,1.52518789,4451.4,4451.3,4.4212]
[1755330178448,1.52518789,4451.4,4451.3,4.6723]
[1755330178945,1.52518789,4451.4,4451.3,4.1825]
[1755330179341,1.52518789,4451.4,4451.3,4.6723]
[1755330179545,1.26088789,4451.4,4451.3,4.6723]
[1755330179746,0.89438789,4451.4,4451.3,4.6723]
[1755330179948,0.32708789,4451.4,4451.3,4.6723]
[1755330180243,0.06748789,4451.4,4451.3,4.6723]
[1755330180751,0.2596,4452.2,4452.1,0.6102]
[1755330180947,1.18095134,4452.2,4452.1,1.4645]
[1755330181143,1.81175134,4452.2,4452.1,1.2134]
[1755330181342,3.26231697,4452.2,4452.1,0.6102]
[1755330181543,3.26231697,4452.2,4451.3,3.2078]
[1755330181750,3.26231697,4452.2,4451.5,0.6032]
[1755330181751,0.6308,4452.0,4451.5,0.6032]
[1755330181950,3.26231697,4451.9,4451.8,1.2134]
[1755330182150,2.43071697,4451.9,4451.3,3.2078]
[1755330182349,2.90826563,4451.4,4451.3,4.1825]
[1755330182550,1.4577,4451.4,4451.3,4.4212]
[1755330182950,1.4577,4451.4,4451.3,3.818]
[1755330183254,1.4577,4451.4,4451.3,4.4212]
[1755330183747,32.335,4453.6,4451.3,4.4212]
[1755330183748,0.2596,4451.7,4451.4,0.6156]
[1755330183953,0.2596,4451.8,4451.7,1.4645]
[1755330184152,1.81174856,4451.8,4451.7,1.2134]
[1755330184555,3.26231419,4451.8,4451.7,1.2134]
[1755330185654,3.26230999,4451.8,4451.7,1.2134]
[1755330188854,0.5673,4451.5,4451.4,0.1737]
[1755330189046,2.90826563,4451.5,4451.4,0.3499]
[1755330189250,2.90826563,4451.5,4451.4,0.1737]
[1755330190652,0.6261,4451.4,4450.7,3.2078]
[1755330190956,2.90826563,4450.8,4450.7,3.818]
[1755330191350,2.90826563,4450.8,4450.7,4.4212]
[1755330194560,2.90826563,4450.8,4450.7,3.2078]
[1755330194760,2.90826563,4450.8,4450.2,3.2078]
[1755330195060,0.35397407,4450.7,4450.6,1.2134]
[1755330195366,0.35397407,4450.7,4450.2,3.2078]
[1755330195367,0.2596,4451.0,4450.9,0.6102]
[1755330195564,0.49098875,4451.0,4450.9,1.4645]
[1755330195765,3.2078,4451.2,4450.9,1.4645]
[1755330195965,0.77495798,4451.1,4451.0,1.4645]
[1755330196166,3.0305381,4451.1,4451.0,1.2134]
[1755330196462,3.26192536,4451.1,4451.0,0.9747]
[1755330196664,3.26192536,4451.1,4451.0,1.2134]
[1755330197266,3.0305381,4451.1,4451.0,1.2134]
[1755330197466,3.26195092,4451.1,4451.0,1.2134]
[1755330198567,3.26198959,4451.1,4451.0,1.2134]
[1755330198763,1.45056563,4451.9,4451.0,1.4606]
[1755330198965,1.84376947,4451.8,4451.7,1.2314]
[1755330199165,1.20866947,4451.8,4451.7,1.4786]
[1755330199963,1.84376947,4451.8,4451.7,1.4786]
[1755330200565,1.84377964,4451.8,4451.7,1.4786]
[1755330201471,1.84377964,4451.8,4451.7,1.2314]
[1755330201668,0.35367964,4451.8,4451.7,1.2314]
[1755330201972,2.94066563,4452.2,4452.1,1.2314]
[1755330202273,3.29435844,4452.2,4452.1,0.8122]
[1755330202668,1.80425844,4452.2,4452.1,1.2314]
[1755330202866,0.35369281,4452.2,4452.1,1.2314]
[1755330203066,3.4627,4452.8,4452.2,0.8795]
[1755330203268,1.45056563,4452.5,4452.3,0.6323]
[1755330203467,2.42676563,4452.5,4452.4,0.5991]
[1755330203668,2.42676563,4452.5,4452.4,1.2314]
[1755330203869,2.30556563,4452.5,4452.4,1.2314]
[1755330204069,1.45056563,4452.5,4452.4,1.4786]
[1755330204269,3.4627,4452.8,4452.7,0.5991]
[1755330204566,2.9179191,4452.8,4452.7,1.4786]
[1755330204770,3.2940191,4452.8,4452.7,1.2314]
[1755330205168,2.94066563,4452.8,4452.7,1.2314]
[1755330206969,2.94066563,4452.8,4452.7,0.9876]
[1755330207170,0.6001,4452.6,4452.5,0.5526]
[1755330207365,1.4901,4452.6,4452.5,0.5526]
[1755330207874,1.4901,4452.6,4452.5,0.8122]
[1755330208073,1.4901,4452.6,4452.5,1.2314]
[1755330209477,1.4901,4452.6,4452.5,1.4786]
[1755330211080,0.855,4452.6,4452.5,1.4786]
[1755330211281,0.4255,4452.6,4452.5,1.4786]
[1755330212473,1.114,4452.6,4452.5,1.2314]
[1755330212677,0.855,4452.6,4452.5,1.4786]
[1755330212877,0.4255,4452.6,4452.5,1.4786]
[1755330213182,0.6845,4452.6,4452.5,1.4786]
[1755330213474,1.4901,4452.6,4452.5,1.4786]
[1755330218778,1.114,4452.6,4452.5,1.4786]
[1755330219381,0.2549,4453.0,4452.5,0.8463]
[1755330219681,1.4901,4452.9,4452.8,1.2314]
[1755330220480,1.4901,4452.9,4452.0,3.2078]
[1755330220686,1.4901,4452.8,4452.7,1.2314]
[1755330224783,1.4901,4452.8,4452.7,1.4786]
[1755330226290,1.4901,4452.8,4452.7,1.2314]
[1755330227285,1.4901,4452.8,4452.7,1.4786]
[1755330227797,1.4901,4452.8,4452.7,1.2314]
[1755330229187,0.1729,4452.9,4452.8,0.6238]
[1755330229382,1.482,4452.9,4452.8,1.1926]
[1755330229582,0.8893,4452.8,4452.3,0.6238]
[1755330229782,1.482,4452.4,4452.3,1.4319]
[1755330230186,1.0938,4452.4,4452.3,1.4319]
[1755330230393,0.4179,4452.4,4452.3,1.4319]
[1755330231483,0.245,4452.6,4452.3,0.5688]
[1755330231689,0.245,4452.6,4452.5,1.4319]
[1755330231889,0.4179,4452.6,4452.5,1.4319]
[1755330232591,1.237,4453.0,4452.9,0.5688]
[1755330232790,0.35579312,4453.0,4452.9,0.5688]
[1755330233291,0.23415785,4453.0,4452.9,1.188]
[1755330233495,0.23415785,4453.0,4452.9,1.4319]
[1755330233793,0.65205785,4453.0,4452.9,1.4319]
[1755330234196,1.482,4453.0,4452.9,1.1926]
[1755330235097,1.482,4453.0,4452.9,1.4319]
[1755330239098,1.482,4453.0,4452.9,1.1926]
[1755330239591,1.482,4453.0,4452.9,1.4319]
[1755330240195,0.245,4453.0,4452.9,1.4319]
[1755330240394,0.1,4453.2,4453.1,1.4319]
[1755330240595,0.3340256,4453.2,4453.1,4.6397]
[1755330240791,0.1,4453.2,4453.1,4.6397]
[1755330240994,0.345,4453.2,4453.1,45.4397]
[1755330243905,1.582,4453.2,4453.1,45.4397]
[1755330244200,1.582,4453.2,4453.1,45.2004]
[1755330244399,1.582,4453.2,4453.1,65.9564]
[1755330244789,1.582,4453.2,4453.1,66.1957]
[1755330245395,0.1,4453.2,4453.1,66.1957]
[1755330246103,1.582,4453.2,4453.1,65.9544]
[1755330246601,1.582,4453.2,4453.1,66.1937]
[1755330246792,1.1938,4453.2,4453.1,44.0078]
[1755330247094,1.582,4453.2,4453.1,65.6229]
[1755330247697,1.582,4453.2,4453.1,65.3836]
[1755330248700,1.582,4453.2,4453.1,23.9578]
[1755330248896,0.1,4453.2,4453.1,26.84026563]
[1755330251598,0.345,4453.2,4453.1,26.84026563]
[1755330252403,1.582,4453.2,4453.1,26.84026563]
[1755330252706,1.582,4453.2,4453.1,26.59796563]
[1755330253003,1.582,4453.2,4453.1,26.83626563]
[1755330253704,0.9377,4453.2,4453.1,26.83626563]
[1755330254105,0.1,4453.2,4453.1,26.83626563]
[1755330255703,0.5179,4453.2,4453.1,6.09026563]
[1755330255906,1.582,4453.2,4453.1,26.59296563]
[1755330256105,1.582,4453.2,4453.1,5.85096563]
[1755330256509,1.582,4453.2,4453.1,26.59296563]
[1755330256908,1.582,4453.2,4453.1,26.83226563]
[1755330257311,1.582,4453.2,4453.1,4.4004]
[1755330257509,1.582,4453.2,4453.1,25.1414]
[1755330257802,1.582,4453.2,4453.1,23.9488]
[1755330258007,1.582,4453.2,4453.1,23.9478]
[1755330258409,1.582,4453.2,4453.1,25.1439]
[1755330258713,1.1938,4453.2,4453.1,26.59446563]
[1755330259113,0.1,4453.2,4453.1,26.85456563]
[1755330259515,0.1,4453.2,4453.1,28.8390726]
[1755330259714,0.1,4453.2,4453.1,28.83867268]
[1755330259914,0.3423,4453.2,4453.1,28.83867268]
[1755330260413,0.516,4453.2,4453.1,28.83867268]
[1755330260615,0.9336,4453.2,4453.1,28.83867268]
[1755330260811,1.184,4453.2,4453.1,28.83867268]
[1755330261011,0.516,4453.2,4453.1,28.83867268]
[1755330261211,0.1,4453.2,4453.1,28.83867268]
[1755330261718,0.1,4453.2,4453.1,28.83845404]
[1755330262418,0.516,4453.2,4453.1,28.83845404]
[1755330262619,0.516,4453.2,4453.1,26.85456563]
[1755330263517,1.5531,4453.2,4453.1,27.12323307]
[1755330263718,1.5531,4453.2,4453.1,25.1389]
[1755330265218,0.516,4453.2,4453.1,4.664]
[1755330265419,0.1,4453.2,4453.1,25.397]
[1755330265814,0.2423,4453.7,4453.3,0.44876]
[1755330266014,0.2423,4453.7,4453.6,6.14636563]
[1755330266212,0.416,4453.7,4453.6,26.87936563]
[1755330266419,0.6664,4453.7,4453.6,26.87936563]
[1755330267222,1.4531,4453.7,4453.6,26.87936563]
[1755330268218,1.4531,4453.7,4453.6,26.61926563]
[1755330268519,1.4531,4453.7,4453.6,26.61726563]
[1755330268721,1.4531,4453.7,4453.6,5.88626563]
[1755330269018,1.4531,4453.7,4453.6,26.61726563]
[1755330269214,1.4531,4453.7,4453.6,23.9388]
[1755330269418,1.4531,4453.7,4453.6,4.65836563]
[1755330269621,1.4531,4453.7,4453.6,25.38836563]
[1755330270322,1.4531,4453.7,4453.6,26.01466563]
[1755330271021,1.4531,4453.7,4453.6,26.61526563]
[1755330274521,0.8336,4453.7,4453.6,26.61526563]
[1755330275021,0.6195,4454.0,4453.6,26.61526563]
[1755330275022,0.6195,4454.0,4453.6,26.24806563]
[1755330275222,1.2108,4454.0,4453.9,2.05116563]
[1755330275422,1.2108,4454.0,4453.9,23.40346563]
[1755330275824,1.4531,4454.0,4453.9,23.40346563]
[1755330276030,1.4531,4454.0,4453.9,22.61036563]
[1755330276321,1.4531,4454.0,4453.9,22.17556563]
[1755330277622,1.4531,4454.0,4453.9,20.725]
[1755330278323,1.4531,4453.7,4453.6,3.2078]
[1755330278514,1.4531,4453.7,4453.6,23.9288]
[1755330278926,1.4531,4453.7,4453.6,3.2078]
[1755330279326,1.4531,4453.7,4453.6,23.9278]
[1755330281322,1.4531,4453.7,4453.6,26.44046563]
[1755330281523,1.4531,4453.7,4453.6,26.60626563]
[1755330282828,0.8336,4453.7,4453.6,28.85097385]
[1755330284126,4.26722585,4457.3,4453.9,0.4487]
[1755330284327,1.4531,4454.8,4454.7,3.2078]
[1755330284529,1.80852374,4454.8,4454.7,23.9238]
[1755330284729,1.4531,4454.8,4454.7,23.9238]
[1755330286831,1.4531,4454.8,4454.7,24.3073]
[1755330287031,1.4531,4454.8,4454.7,24.4824]
[1755330287232,1.4531,4454.8,4454.7,25.1517]
[1755330287428,1.4531,4454.8,4454.7,24.5244]
[1755330287629,1.4531,4454.8,4454.7,25.1517]
[1755330288931,1.4531,4454.8,4454.7,25.411]
[1755330289327,0.2423,4454.8,4454.7,25.1517]
[1755330289632,0.2423,4454.8,4454.7,25.411]
[1755330289825,0.6679,4455.5,4455.4,0.1611]
[1755330290028,0.1678,4454.9,4454.8,24.1771]
[1755330290231,0.4287,4454.9,4454.8,25.3868]
[1755330291236,0.4287,4454.9,4454.8,25.1443]
[1755330291734,0.4287,4454.9,4454.8,24.1751]
[1755330292540,0.4287,4454.9,4454.8,3.4671]
[1755330292736,0.4287,4454.9,4454.8,4.4343]
[1755330292942,0.4287,4454.9,4454.8,25.3848]
[1755330293638,0.4287,4454.9,4454.8,24.5883]
[1755330294044,0.4287,4454.9,4454.8,24.1751]
[1755330294344,0.4287,4454.9,4454.8,24.1741]
[1755330294543,0.4287,4454.9,4454.8,3.4671]
[1755330294744,0.4287,4454.9,4454.8,25.2217]
[1755330294948,0.4287,4454.9,4454.8,25.3828]
[1755330297646,0.1678,4454.9,4454.8,25.3828]
[1755330297834,0.4287,4455.4,4455.3,0.5743]
[1755330298042,0.4287,4455.4,4455.3,21.9315]
[1755330298341,0.4287,4455.4,4455.3,21.5386]
[1755330298545,0.4287,4455.4,4455.3,22.174]
[1755330298847,0.4287,4455.4,4455.3,21.1307]
[1755330299146,0.4287,4455.4,4455.3,20.9643]
[1755330299734,0.4287,4455.4,4455.3,21.7704]
[1755330300342,0.4287,4455.3,4455.2,20.704]
[1755330300543,0.4287,4455.3,4455.2,20.9633]
[1755330300841,0.4287,4455.3,4455.2,21.1297]
[1755330301046,0.4287,4455.3,4455.2,21.5226]
[1755330301244,0.4287,4455.3,4455.2,0.4257]
[1755330301443,0.4287,4455.3,4455.2,0.2593]
[1755330301643,0.4287,4455.3,4455.2,20.9613]
[1755330301844,0.4287,4455.3,4455.2,21.7674]
[1755330302343,0.4287,4455.3,4455.2,22.171]
[1755330302550,0.4287,4455.3,4455.2,22.17]
[1755330303048,0.4287,4455.4,4455.3,1.3026]
[1755330303241,0.4287,4455.4,4455.3,0.2593]
[1755330303549,0.4287,4455.4,4455.3,20.9603]
[1755330303847,0.4287,4455.4,4454.4,42.25056563]
[1755330303848,0.1678,4454.5,4454.4,20.9603]
[1755330304151,0.4287,4454.5,4454.4,0.2593]
[1755330304450,0.4287,4454.5,4454.4,20.7]
[1755330304746,0.4287,4454.5,4454.4,20.9593]
[1755330305144,0.4287,4454.5,4454.4,22.169]
[1755330305648,0.4287,4454.5,4454.4,21.9265]
[1755330306149,0.4287,4454.5,4454.4,20.9603]
[1755330306345,0.4287,4454.5,4454.3,3.2078]
[1755330306551,0.4287,4454.4,4454.3,3.2078]
[1755330306852,0.4287,4454.4,4454.3,3.4671]
[1755330307943,0.4287,4454.4,4454.3,3.2078]
[1755330308145,0.4287,4453.9,4453.8,3.4671]
[1755330308537,0.4287,4453.9,4453.8,4.2732]
[1755330308944,0.4287,4453.9,4453.8,4.5157]
[1755330309139,0.4287,4453.9,4453.8,3.2078]
[1755330309653,0.4287,4453.9,4453.8,4.2732]
[1755330309854,0.2609,4454.1,4453.8,25.93266563]
[1755330310149,1.62380334,4456.3,4453.8,25.93266563]
[1755330310150,0.4287,4454.7,4454.6,1.469]
[1755330310350,1.71146563,4455.4,4454.7,0.6522]
[1755330310539,0.1678,4454.5,4454.4,21.9255]
[1755330310747,1.45056563,4455.4,4454.5,0.8947]
[1755330310941,0.2609,4456.2,4455.3,2.26736563]
[1755330311146,33.94380334,4457.8,4456.0,1.469]
[1755330311147,1.71146563,4456.8,4456.0,1.469]
[1755330311345,32.32,4457.8,4456.1,25.82427]
[1755330311346,0.1678,4456.2,4456.1,25.82427]
[1755330311547,1.45056563,4457.1,4456.4,0.5743]
[1755330311748,0.66280608,4457.0,4456.9,4.0246]
[1755330311951,0.4287,4457.0,4456.9,4.0246]
[1755330312146,0.2609,4457.5,4456.9,25.3758]
[1755330312352,0.1678,4457.6,4457.5,1.0761]
[1755330312655,0.4287,4457.6,4457.5,21.9255]
[1755330312849,0.4287,4457.6,4457.5,22.168]
[1755330314351,0.4287,4457.6,4457.5,1.469]
[1755330314650,0.4287,4457.6,4457.5,0.2593]
[1755330314849,0.1678,4457.6,4456.9,3.2078]
[1755330315045,0.1678,4457.1,4457.0,22.163]
[1755330315247,0.4287,4457.1,4457.0,22.163]
[1755330316754,0.4287,4457.1,4457.0,1.469]
[1755330316948,0.4287,4457.1,4457.0,22.163]
[1755330317360,0.4287,4457.1,4457.0,1.469]
[1755330317549,3.2078,4458.5,4457.0,22.163]
[1755330317753,0.4287,4457.6,4457.5,4.6768]
[1755330318556,1.45056563,4458.4,4457.5,3.7821]
[1755330318751,0.4313,4458.1,4458.0,4.0481]
[1755330319257,0.4313,4458.1,4458.0,4.7048]
[1755330320349,0.4313,4458.1,4458.0,4.4423]
[1755330320553,0.4313,4458.1,4458.0,1.2345]
[1755330320956,0.4313,4456.4,4456.3,3.4714]
[1755330321255,0.4313,4456.4,4456.3,0.2636]
[1755330321451,1.45056563,4458.0,4456.5,0.6556]
[1755330321752,1.45056563,4458.0,4456.4,0.2636]
[1755330321753,0.4313,4457.5,4457.4,1.2345]
[1755330321953,0.4313,4457.5,4457.4,1.497]
[1755330322157,1.45056563,4457.9,4457.4,0.8403]
[1755330322353,1.88186563,4457.9,4457.8,4.4423]
[1755330322957,1.88186563,4457.9,4457.8,3.4714]
[1755330323158,1.62016563,4457.9,4457.2,0.7992]
[1755330323457,0.4313,4457.4,4457.3,4.7048]
[1755330324159,1.62016563,4457.4,4456.9,0.2636]
[1755330324355,0.1696,4457.0,4456.7,0.2636]
[1755330324549,0.4313,4456.8,4456.7,1.2345]
[1755330324953,0.4313,4456.8,4456.7,0.6697]
[1755330325159,1.88186563,4456.8,4456.7,0.2636]
[1755330325751,0.4313,4456.8,4456.7,0.2636]
[1755330325952,0.4313,4456.8,4456.7,1.2345]
[1755330326151,0.2617,4457.3,4456.8,0.2636]
[1755330326351,0.1696,4457.3,4457.2,0.5778]
[1755330326750,0.2617,4457.6,4457.2,0.5778]
[1755330326957,0.4313,4457.6,4457.5,4.7048]
[1755330327154,0.4313,4457.6,4457.5,1.497]
[1755330327561,0.4313,4457.6,4457.5,4.7048]
[1755330329666,1.88186563,4457.9,4457.8,1.2345]
[1755330330263,1.88186563,4457.9,4457.8,1.497]
[1755330331369,1.88186563,4457.9,4457.8,1.2345]
[1755330331759,1.88186563,4457.9,4457.8,0.4353]
[1755330332070,0.4313,4457.7,4457.6,0.2636]
[1755330332274,0.4313,4457.7,4457.6,0.4301]
[1755330332570,0.4313,4457.7,4457.6,0.6697]
[1755330333071,0.4313,4457.7,4457.6,1.497]
[1755330333275,0.1696,4457.8,4457.7,1.2345]
[1755330333568,0.4313,4457.8,4457.7,1.497]
[1755330334967,0.43707509,4457.8,4457.7,1.497]
[1755330336169,0.43707509,4457.8,4457.7,0.2636]
[1755330336562,0.43707509,4457.8,4457.7,0.4301]
[1755330336767,0.43707509,4457.8,4457.7,1.497]
[1755330340264,0.78896688,4457.8,4457.7,1.497]
[1755330341168,0.35766688,4457.8,4457.7,1.497]
[1755330341873,0.23597641,4457.8,4457.7,1.497]
[1755330342772,0.00577509,4457.8,4457.7,1.497]
[1755330343873,0.43707509,4457.8,4457.7,1.497]
[1755330344574,0.00577509,4457.8,4457.7,1.497]
[1755330344970,0.43707509,4457.8,4457.7,1.497]
[1755330347079,0.43707509,4457.8,4457.7,4.7048]
[1755330349282,0.00577509,4457.8,4457.7,3.8775]
[1755330349480,0.42087509,4457.8,4457.7,4.6671]
[1755330349781,0.42087509,4457.8,4457.7,4.4238]
[1755330349975,2.10267923,4457.8,4457.7,4.046]
[1755330350281,0.77383769,4457.8,4457.7,3.8775]
[1755330350480,2.22440332,4457.8,4457.7,3.8775]
[1755330351077,2.22440332,4457.8,4457.7,4.4238]
[1755330351375,2.22440332,4457.8,4457.7,4.6671]
[1755330351774,2.22442822,4457.8,4457.7,4.6671]
[1755330351973,0.77296259,4457.8,4457.7,4.6671]
[1755330352784,0.00577509,4457.8,4457.7,4.6671]
[1755330355483,0.41997509,4457.8,4457.7,4.6671]
[1755330356279,0.16657509,4457.8,4457.7,4.6671]
[1755330356486,0.00577509,4457.8,4457.7,4.6671]
[1755330357980,0.16657509,4457.8,4457.7,4.6671]
[1755330358186,0.41997509,4457.8,4457.7,4.6671]
[1755330358481,0.42087509,4457.8,4457.7,4.4238]
[1755330358677,0.77417526,4457.8,4457.7,4.4238]
[1755330358976,0.77417526,4457.8,4457.7,4.6671]
[1755330360577,0.77328674,4457.8,4457.7,4.6671]
[1755330362383,3.2078,4459.0,4458.2,0.2539]
[1755330362682,1.45056563,4458.7,4458.6,0.3778]
[1755330362983,0.7424,4458.4,4458.3,4.3979]
[1755330363184,0.6852,4458.4,4458.3,4.3979]
[1755330363488,0.1608,4458.4,4458.3,4.6518]
[1755330363678,0.8377,4458.4,4458.3,4.6518]
[1755330363984,1.0894,4458.4,4458.3,4.4085]
[1755330364177,2.53996563,4458.4,4458.3,3.2078]
[1755330364379,2.53996563,4458.4,4458.3,3.6214]
[1755330364576,2.53996563,4458.4,4458.3,3.8622]
[1755330364780,2.53996563,4458.4,4458.3,3.2078]
[1755330365285,2.53996563,4458.4,4458.3,3.4617]
[1755330367384,2.53996563,4458.4,4458.3,4.4085]
[1755330367581,0.5899,4458.4,4458.3,4.6518]
[1755330367979,0.6852,4458.4,4458.3,4.6518]
[1755330368382,0.5899,4458.4,4458.3,4.6518]
[1755330368782,0.1608,4458.5,4458.4,0.2539]
[1755330368983,0.1608,4458.5,4458.4,1.444]
[1755330369183,0.4142,4458.5,4458.4,1.444]
[1755330369391,0.6852,4458.5,4458.4,1.444]
[1755330369889,0.5899,4458.5,4458.4,1.444]
[1755330370182,0.8377,4459.4,4459.3,0.6544]
[1755330370384,1.0894,4459.4,4459.3,0.2539]
[1755330370789,0.8377,4459.3,4459.2,0.6657]
[1755330370990,0.8377,4459.3,4459.2,1.444]
[1755330371387,2.28826563,4459.3,4459.2,1.444]
[1755330373482,1.78706563,4459.3,4459.2,1.2007]
[1755330373788,2.53996563,4459.3,4459.2,1.2007]
[1755330373986,2.53996563,4459.3,4459.2,1.444]
[1755330374294,2.88556572,4459.3,4459.2,1.444]
[1755330374985,2.63386572,4459.3,4459.2,1.444]
[1755330376196,2.88556572,4459.3,4459.2,1.444]
[1755330376493,2.63386572,4459.3,4459.2,1.444]
[1755330376693,2.40599209,4459.3,4459.2,1.444]
[1755330376894,2.63422735,4459.3,4459.2,1.444]
[1755330377893,2.88590684,4459.3,4459.2,1.444]
[1755330378893,0.34594121,4459.3,4459.2,0.8229]
[1755330379191,3.2078,4460.0,4459.3,0.8764]
[1755330379397,5.49156563,4460.0,4459.9,1.2152]
[1755330379584,5.83738457,4460.0,4459.9,1.466]
[1755330379788,6.08168457,4460.0,4459.9,1.2152]
[1755330379996,0.8332,4459.6,4459.5,0.4214]
[1755330380297,0.11767331,4459.6,4459.5,1.466]
[1755330380497,5.01266563,4460.0,4459.6,0.8764]
[1755330380498,0.2604,4459.9,4459.6,0.8764]
[1755330380796,0.11766072,4459.8,4459.7,1.466]
[1755330380988,0.28016072,4459.8,4459.7,1.466]
[1755330381195,0.8332,4459.8,4459.7,1.466]
[1755330381390,1.17894095,4459.8,4459.7,1.466]
[1755330382198,1.17894049,4459.8,4459.7,1.466]
[1755330383601,0.93484049,4459.8,4459.7,1.466]
[1755330384101,1.17894049,4459.8,4459.7,1.466]
[1755330384798,2.62950612,4459.8,4459.7,1.466]
[1755330385501,2.62947792,4459.8,4459.7,1.466]
[1755330387203,2.87377792,4459.8,4459.7,1.466]
[1755330387501,2.27517792,4459.8,4459.4,0.255]
[1755330387708,2.26766563,4459.5,4459.4,1.466]
[1755330388109,2.02336563,4459.5,4459.4,1.466]
[1755330388408,2.28376563,4459.5,4459.4,1.466]
[1755330388808,0.5891,4459.5,4459.4,1.466]
[1755330389207,1.87316563,4459.8,4459.7,0.5896]
[1755330389414,2.6120347,4459.8,4459.7,1.466]
[1755330389907,0.3543,4459.7,4458.9,3.2078]
[1755330390105,0.5891,4459.7,4459.6,1.2152]
[1755330390313,0.93351361,4459.7,4459.6,1.466]
[1755330390512,0.39066993,4459.7,4459.6,1.466]
[1755330390811,0.1625,4459.7,4459.6,1.466]
[1755330391408,0.5168,4459.9,4459.8,1.466]
[1755330391606,1.02746876,4459.9,4459.8,1.466]
[1755330392811,0.93356876,4459.9,4459.8,1.466]
[1755330393008,0.34446876,4459.9,4459.8,1.466]
[1755330393313,0.1,4460.2,4460.1,1.466]
[1755330393508,0.91735353,4460.2,4460.1,1.466]
[1755330393813,1.12753337,4460.2,4460.1,1.466]
[1755330394211,0.44453337,4460.2,4460.1,1.466]
[1755330394410,1.27773337,4460.2,4460.1,1.466]
[1755330395714,1.27773337,4460.2,4459.4,44.0078]
[1755330395715,0.8332,4459.6,4459.5,1.466]
[1755330397012,0.4229,4459.6,4459.5,1.466]
[1755330397311,1.45056563,4460.0,4459.5,0.5896]
[1755330397508,0.3543,4459.8,4459.6,0.8764]
[1755330397715,0.5168,4459.8,4459.7,1.466]
[1755330397911,1.02773225,4459.8,4459.7,1.466]
[1755330399015,0.34473225,4459.8,4459.7,1.466]
[1755330399411,0.76763225,4459.8,4459.7,1.466]
[1755330399910,0.50723225,4459.8,4459.7,1.466]
[1755330400910,1.17793225,4459.8,4459.7,1.466]
[1755330401313,1.42223225,4459.8,4459.7,1.466]
[1755330402115,1.17793225,4459.8,4459.7,1.466]
[1755330402716,1.42223225,4459.8,4459.7,1.466]
[1755330403312,1.17793225,4459.8,4459.7,1.466]
[1755330405717,1.17824287,4459.8,4459.7,1.466]
[1755330408219,0.34504287,4459.8,4459.7,1.466]
[1755330408918,0.74574287,4459.8,4459.7,1.466]
[1755330410019,1.00144287,4459.8,4459.7,1.466]
[1755330410725,0.90764287,4459.8,4459.7,1.466]
[1755330410916,0.66864287,4459.8,4459.7,1.466]
[1755330411116,0.50674287,4459.8,4459.7,1.466]
[1755330411512,0.50678464,4459.8,4459.7,1.466]
[1755330412314,0.74578464,4459.8,4459.7,1.466]
[1755330412514,0.34508464,4459.8,4459.7,1.466]
[1755330412817,1.00148464,4459.8,4459.7,1.466]
[1755330413522,0.6564,4459.8,4459.7,1.466]
[1755330414822,0.1617,4459.8,4459.7,1.466]
[1755330415015,0.0938,4460.0,4459.8,0.2444]
[1755330415217,0.74510887,4459.9,4459.8,1.1955]
[1755330415418,0.50610887,4459.9,4459.8,1.4456]
[1755330415616,0.74510887,4459.9,4459.8,1.4456]